fUSD/lending_fUSD_20250320
["ID","MTS","AMOUNT","RATE_DAILY","PERIOD"]
[356418973,1742429474398,-500.0,0.00028037,2]
[356418974,1742429474409,-500.0,0.00028037,2]
[356418975,1742429474419,-500.0,0.00028037,2]
[356418976,1742429474429,-500.0,0.00028037,2]
[356418977,1742429474439,-500.0,0.00028037,2]
[356418978,1742429474450,-500.0,0.00028037,2]
[356418979,1742429474461,-733.99,0.00028037,2]
[356418980,1742429474472,-560.99,0.00028037,2]
[356418981,1742429474482,-557.24,0.00028037,2]
[356418982,1742429474493,-2429.87,0.00028037,2]
[356418983,1742429474502,-1348.17,0.00028037,2]
[356418984,1742429474513,-500.0,0.00028037,2]
[356418985,1742429474524,-500.0,0.00028037,2]
[356418986,1742429474533,-500.0,0.00028037,2]
[356418987,1742429474543,-500.0,0.00028037,2]
[356418988,1742429474552,-500.0,0.00028037,2]
[356418989,1742429474562,-500.0,0.00028037,2]
[356418990,1742429474571,-2049.6487561,0.00028037,30]
[356418991,1742429474581,-500.0,0.00028037,2]
[356418992,1742429474591,-610.35,0.00028037,2]
[356418993,1742429474600,-1458.76,0.00028037,2]
[356418994,1742429474609,-817.74,0.00028037,2]
[356418995,1742429474620,-500.0,0.00028037,2]
[356418996,1742429474632,-573.64,0.00028037,2]
[356418997,1742429474643,-668.32,0.00028037,2]
[356418998,1742429474655,-1066.122063,0.00028037,2]
[356418999,1742429474668,-500.0,0.00028037,2]
[356419000,1742429474678,-500.0,0.00028037,2]
[356419001,1742429474690,-500.0,0.00028037,2]
[356419002,1742429474701,-741.24,0.00028037,2]
[356419003,1742429474713,-884.76,0.00028037,2]
[356419004,1742429474723,-874.150544,0.00028037,2]
[356419005,1742429474733,-500.0,0.00028037,2]
[356419006,1742429474744,-1398.42,0.00028037,2]
[356419007,1742429474753,-517.35,0.00028037,2]
[356419008,1742429474764,-815.99,0.00028037,2]
[356419009,1742429474774,-528.47,0.00028037,2]
[356419010,1742429474783,-677.6,0.00028037,2]
[356419011,1742429474794,-663.32,0.00028037,2]
[356419012,1742429474804,-500.0,0.00028037,2]
[356419013,1742429474814,-500.0,0.00028037,2]
[356419014,1742429474824,-558.1,0.00028037,2]
[356419015,1742429474835,-500.0,0.00028037,2]
[356419016,1742429474845,-500.0,0.00028037,2]
[356419017,1742429474855,-936.25,0.00028037,2]
[356419018,1742429474866,-499.63509983,0.00028037,2]
[356419019,1742429474878,-621.6865383,0.00028037,2]
[356419020,1742429474888,-679.48,0.00028037,2]
[356419021,1742429474899,-500.0,0.00028037,2]
[356419022,1742429474910,-500.0,0.00028037,2]
[356419023,1742429474924,-500.0,0.00028037,2]
[356419024,1742429474934,-500.0,0.00028037,2]
[356419025,1742429474945,-868.8,0.00028037,2]
[356419026,1742429474955,-500.0,0.00028037,2]
[356419027,1742429474965,-1176.38,0.00028037,2]
[356419028,1742429474975,-785.4,0.00028037,2]
[356419029,1742429474986,-821.33,0.00028037,2]
[356419030,1742429474996,-739.48,0.00028037,2]
[356419031,1742429475006,-546.35,0.00028037,2]
[356419032,1742429475016,-500.0,0.00028037,2]
[356419033,1742429475026,-697.24,0.00028037,2]
[356419034,1742429475036,-722.61,0.00028037,2]
[356419035,1742429475046,-500.0,0.00028037,2]
[356419036,1742429475056,-500.0,0.00028037,2]
[356419037,1742429475066,-500.0,0.00028037,2]
[356419038,1742429475076,-3586.23,0.00028037,2]
[356419039,1742429475086,-736.12,0.00028037,2]
[356419040,1742429475096,-1097.43,0.00028037,2]
[356419041,1742429475106,-1474.64,0.00028037,2]
[356419042,1742429475116,-500.0,0.00028037,2]
[356419043,1742429475129,-500.0,0.00028037,2]
[356419044,1742429475139,-1280.33,0.00028037,2]
[356419045,1742429475149,-862.32,0.00028037,2]
[356419046,1742429475159,-783.16,0.00028037,2]
[356419047,1742429475169,-752.13,0.00028037,2]
[356419048,1742429475179,-1602.83,0.00028037,2]
[356419049,1742429475189,-613.42,0.00028037,2]
[356419050,1742429475199,-1019.87,0.00028037,2]
[356419051,1742429475209,-721.01,0.00028037,2]
[356419052,1742429475219,-500.0,0.00028037,2]
[356419053,1742429475229,-989.3,0.00028037,2]
[356419054,1742429475239,-500.0,0.00028037,2]
[356419055,1742429475249,-747.45,0.00028037,2]
[356419056,1742429475259,-500.0,0.00028037,2]
[356419057,1742429475269,-500.0,0.00028037,2]
[356419058,1742429475280,-613.99,0.00028037,2]
[356419059,1742429475290,-698.32,0.00028037,2]
[356419060,1742429475300,-694.45,0.00028037,2]
[356419061,1742429475310,-500.0,0.00028037,2]
[356419062,1742429475320,-500.0,0.00028037,2]
[356419063,1742429475330,-500.0,0.00028037,2]
[356419064,1742429475339,-500.0,0.00028037,2]
[356419065,1742429475350,-500.0,0.00028037,2]
[356419066,1742429475360,-500.0,0.00028037,2]
[356419067,1742429475370,-1054.21,0.00028037,2]
[356419068,1742429475382,-500.0,0.00028037,2]
[356419069,1742429475391,-500.0,0.00028037,2]
[356419070,1742429475400,-632.64,0.00028037,2]
[356419071,1742429475409,-1059.54,0.00028037,2]
[356419072,1742429475419,-500.0,0.00028037,2]
[356419073,1742429475430,-500.0,0.00028037,2]
[356419074,1742429475439,-726.3,0.00028037,2]
[356419075,1742429475448,-856.71,0.00028037,2]
[356419076,1742429475458,-500.0,0.00028037,2]
[356419077,1742429475468,-500.0,0.00028037,2]
[356419078,1742429475478,-585.41,0.00028037,2]
[356419079,1742429475488,-665.41,0.00028037,2]
[356419080,1742429475499,-500.0,0.00028037,2]
[356419081,1742429475509,-852.57,0.00028037,2]
[356419082,1742429475519,-877.66,0.00028037,2]
[356419083,1742429475529,-1145.44,0.00028037,2]
[356419084,1742429475539,-500.0,0.00028037,2]
[356419085,1742429475549,-500.0,0.00028037,2]
[356419086,1742429475559,-546.67,0.00028037,2]
[356419087,1742429475571,-527.46,0.00028037,2]
[356419088,1742429475582,-601.7,0.00028037,2]
[356419089,1742429475592,-642.55,0.00028037,2]
[356419090,1742429475603,-1444.41,0.00028037,2]
[356419091,1742429475613,-594.29,0.00028037,2]
[356419092,1742429475626,-853.47,0.00028037,2]
[356419093,1742429475637,-561.98,0.00028037,2]
[356419094,1742429475648,-812.3,0.00028037,2]
[356419095,1742429475659,-511.43,0.00028037,2]
[356419096,1742429475669,-718.36,0.00028037,2]
[356419097,1742429475679,-500.0,0.00028037,2]
[356419098,1742429475690,-500.0,0.00028037,2]
[356419099,1742429475700,-500.0,0.00028037,2]
[356419100,1742429475711,-500.0,0.00028037,2]
[356419101,1742429475722,-633.27,0.00028037,2]
[356419102,1742429475734,-1076.81,0.00028037,2]
[356419103,1742429475746,-531.66,0.00028037,2]
[356419104,1742429475756,-500.0,0.00028037,2]
[356419105,1742429475766,-920.66,0.00028037,2]
[356419106,1742429475776,-500.0,0.00028037,2]
[356419107,1742429475787,-500.0,0.00028037,2]
[356419108,1742429475797,-500.0,0.00028037,2]
[356419109,1742429475809,-511.28,0.00028037,2]
[356419110,1742429475820,-500.0,0.00028037,2]
[356419111,1742429475831,-500.0,0.00028037,2]
[356419112,1742429475842,-514.3,0.00028037,2]
[356419113,1742429475854,-786.12,0.00028037,2]
[356419114,1742429475863,-555.8,0.00028037,2]
[356419115,1742429475876,-500.0,0.00028037,2]
[356419116,1742429475885,-500.0,0.00028037,2]
[356419117,1742429475894,-916.67,0.00028037,2]
[356419118,1742429475905,-500.0,0.00028037,2]
[356419119,1742429475917,-606.34,0.00028037,2]
[356419120,1742429475931,-1423.16,0.00028037,2]
[356419121,1742429475942,-514.51,0.00028037,2]
[356419122,1742429475953,-500.0,0.00028037,2]
[356419123,1742429475964,-527.4,0.00028037,2]
[356419124,1742429475975,-771.71,0.00028037,2]
[356419125,1742429475986,-1968.02,0.00028037,2]
[356419126,1742429475999,-890.3,0.00028037,2]
[356419127,1742429476010,-972.67,0.00028037,2]
[356419128,1742429476021,-1255.95,0.00028037,2]
[356419129,1742429476033,-500.0,0.00028037,2]
[356419130,1742429476043,-747.03,0.00028037,2]
[356419131,1742429476053,-500.0,0.00028037,2]
[356419132,1742429476064,-1355.2,0.00028037,2]
[356419133,1742429476074,-565.73,0.00028037,2]
[356419134,1742429476086,-514.95,0.00028037,2]
[356419135,1742429476097,-1417.74,0.00028037,2]
[356419136,1742429476107,-1385.47,0.00028037,2]
[356419137,1742429476118,-1032.51,0.00028037,2]
[356419138,1742429476131,-1664.63,0.00028037,2]
[356419139,1742429476142,-636.34,0.00028037,2]
[356419140,1742429476152,-1005.05,0.00028037,2]
[356419141,1742429476163,-500.0,0.00028038,2]
[356419142,1742429476174,-500.0,0.00028038,2]
[356419143,1742429476185,-500.0,0.00028038,2]
[356419144,1742429476196,-531.91,0.00028038,2]
[356419145,1742429476206,-567.96519863,0.00028038,2]
[356419146,1742429476216,-500.0,0.00028038,2]
[356419147,1742429476226,-589.81,0.00028038,2]
[356419148,1742429476237,-500.0,0.00028038,2]
[356419149,1742429476247,-500.0,0.00028038,2]
[356419150,1742429476256,-779.96,0.00028038,2]
[356419151,1742429476267,-876.08,0.00028038,30]
[356419152,1742429476278,-500.0,0.00028038,2]
[356419153,1742429476289,-500.0,0.00028038,2]
[356419154,1742429476362,-500.0,0.00028038,2]
[356419155,1742429476373,-606.94,0.00028038,2]
[356419156,1742429476385,-500.0,0.00028038,2]
[356419157,1742429476396,-500.0,0.00028038,2]
[356419158,1742429476407,-484.07439889,0.00028038,2]
[356419159,1742429476417,-500.0,0.00028038,2]
[356419160,1742429476427,-500.0,0.00028038,2]
[356419161,1742429476438,-500.0,0.00028038,2]
[356419162,1742429476449,-500.0,0.00028038,2]
[356419163,1742429476458,-500.0,0.00028038,2]
[356419164,1742429476468,-500.0,0.00028038,2]
[356419165,1742429476479,-500.0,0.00028038,2]
[356419166,1742429476489,-781.06,0.00028038,2]
[356419167,1742429476498,-500.0,0.00028038,2]
[356419168,1742429476508,-522.68,0.00028038,2]
[356419169,1742429476518,-500.0,0.00028038,2]
[356419170,1742429476528,-500.0,0.00028038,2]
[356419171,1742429476538,-500.0,0.00028038,2]
[356419172,1742429476548,-500.0,0.00028038,2]
[356419173,1742429476559,-500.0,0.00028038,2]
[356419174,1742429476569,-500.0,0.00028038,2]
[356419175,1742429476581,-500.0,0.00028038,2]
[356419176,1742429476592,-500.0,0.00028038,2]
[356419177,1742429476602,-500.0,0.00028038,2]
[356419178,1742429476613,-500.0,0.00028038,2]
[356419179,1742429476623,-500.0,0.00028038,2]
[356419180,1742429476636,-500.0,0.00028038,2]
[356419181,1742429476646,-500.0,0.00028038,2]
[356419182,1742429476657,-500.0,0.00028038,2]
[356419183,1742429476668,-500.0,0.00028038,2]
[356419184,1742429476679,-558.78,0.00028038,2]
[356419185,1742429476689,-809.17,0.00028038,2]
[356419186,1742429476699,-500.0,0.00028038,2]
[356419187,1742429476710,-500.0,0.00028038,2]
[356419188,1742429476721,-500.0,0.00028038,2]
[356419189,1742429476731,-500.0,0.00028038,2]
[356419190,1742429476741,-500.0,0.00028038,2]
[356419191,1742429476751,-500.0,0.00028038,2]
[356419192,1742429476761,-500.0,0.00028038,2]
[356419193,1742429476771,-547.06,0.00028038,2]
[356419194,1742429476781,-724.54,0.00028038,2]
[356419195,1742429476791,-861.1,0.00028038,2]
[356419196,1742429476801,-765.51,0.00028038,2]
[356419197,1742429476811,-600.81,0.00028038,2]
[356419198,1742429476821,-500.0,0.00028038,2]
[356419199,1742429476831,-500.0,0.00028038,2]
[356419200,1742429476840,-500.0,0.00028038,2]
[356419201,1742429476850,-838.32,0.00028038,2]
[356419202,1742429476860,-500.0,0.00028038,2]
[356419203,1742429476871,-877.03,0.00028038,2]
[356419204,1742429476882,-868.68,0.00028038,2]
[356419205,1742429476893,-351.14,0.00028038,2]
[356419206,1742429476904,-500.0,0.00028038,2]
[356419207,1742429476916,-897.12,0.00028038,2]
[356419208,1742429476928,-577.2,0.00028038,2]
[356419209,1742429476940,-500.0,0.00028038,2]
[356419210,1742429476950,-500.0,0.00028038,2]
[356419211,1742429476962,-627.93,0.00028038,2]
[356419212,1742429476972,-521.81120228,0.00028038,2]
[356419213,1742429476982,-500.0,0.00028038,2]
[356419214,1742429476993,-545.31,0.00028038,2]
[356419215,1742429477004,-500.0,0.00028038,2]
[356419216,1742429477015,-680.4,0.00028038,2]
[356419217,1742429477025,-500.0,0.00028038,2]
[356419218,1742429477034,-1763.55,0.00028038,2]
[356419219,1742429477044,-598.69,0.00028038,2]
[356419220,1742429477054,-500.0,0.00028038,2]
[356419221,1742429477064,-864.59,0.00028038,2]
[356419222,1742429477074,-477.40204763,0.00028038,2]
[356419223,1742429477084,-529.7,0.00028038,2]
[356419224,1742429477094,-500.0,0.00028038,2]
[356419225,1742429477105,-564.2,0.00028038,2]
[356419226,1742429477116,-500.0,0.00028038,2]
[356419227,1742429477126,-500.0,0.00028038,2]
[356419228,1742429477136,-567.74,0.00028038,2]
[356419229,1742429477146,-975.75,0.00028038,2]
[356419230,1742429477157,-500.0,0.00028038,2]
[356419231,1742429477167,-500.0,0.00028038,2]
[356419232,1742429477177,-500.0,0.00028038,2]
[356419233,1742429477187,-500.0,0.00028038,2]
[356419234,1742429477197,-1049.13,0.00028038,2]
[356419235,1742429477207,-500.0,0.00028038,2]
[356419236,1742429477217,-500.0,0.00028038,2]
[356419237,1742429477227,-500.0,0.00028038,2]
[356419238,1742429477237,-515.03176784,0.00028038,2]
[356419239,1742429477247,-500.0,0.00028038,2]
[356419240,1742429477256,-579.48,0.00028038,2]
[356419241,1742429477266,-500.0,0.00028038,2]
[356419242,1742429477275,-500.0,0.00028038,2]
[356419243,1742429477284,-613.24,0.00028038,2]
[356419244,1742429477294,-500.0,0.00028038,2]
[356419245,1742429477303,-500.0,0.00028038,2]
[356419246,1742429477312,-606.13,0.00028038,2]
[356419247,1742429477321,-536.86,0.00028038,2]
[356419248,1742429477331,-500.0,0.00028038,2]
[356419249,1742429477340,-555.6,0.00028038,2]
[356419250,1742429477350,-500.0,0.00028038,2]
[356419251,1742429477359,-500.0,0.00028038,2]
[356419252,1742429477368,-500.0,0.00028038,2]
[356419253,1742429477378,-500.0,0.00028038,2]
[356419254,1742429477388,-500.0,0.00028038,2]
[356419255,1742429477397,-964.77,0.00028038,2]
[356419256,1742429477407,-1124.21,0.00028038,2]
[356419257,1742429477416,-754.87,0.00028038,2]
[356419258,1742429477425,-500.0,0.00028038,2]
[356419259,1742429477435,-500.0,0.00028038,2]
[356419260,1742429477445,-560.09,0.00028038,2]
[356419261,1742429477454,-500.0,0.00028038,2]
[356419262,1742429477463,-710.63,0.00028038,2]
[356419263,1742429477473,-500.0,0.00028038,2]
[356419264,1742429477483,-500.0,0.00028038,2]
[356419265,1742429477492,-606.83,0.00028038,2]
[356419266,1742429477502,-500.0,0.00028038,2]
[356419267,1742429477511,-500.0,0.00028038,2]
[356419268,1742429477520,-500.0,0.00028038,2]
[356419269,1742429477530,-728.7,0.00028038,2]
[356419270,1742429477539,-500.0,0.00028038,2]
[356419271,1742429477548,-504.06,0.00028038,2]
[356419272,1742429477558,-500.0,0.00028038,2]
[356419273,1742429477568,-731.57,0.00028038,2]
[356419274,1742429477578,-638.18,0.00028038,2]
[356419275,1742429477587,-500.0,0.00028038,2]
[356419276,1742429477597,-1067.09,0.00028038,2]
[356419277,1742429477606,-500.0,0.00028038,2]
[356419278,1742429477616,-815.96699464,0.00028047,2]
[356419279,1742429477626,-175.86385841,0.0002805,2]
[356419280,1742429477635,-528.51,0.0002805,2]
[356419281,1742429477645,-500.0,0.0002805,2]
[356419282,1742429477654,-500.0,0.0002805,2]
[356419283,1742429477664,-286.9714397,0.0002805,2]
[356419284,1742429477673,-500.0,0.0002805,2]
[356419285,1742429477682,-500.0,0.0002805,2]
[356419286,1742429477692,-500.0,0.0002805,2]
[356419287,1742429477702,-500.17,0.0002805,2]
[356419288,1742429477712,-510.19,0.0002805,2]
[356419289,1742429477722,-500.0,0.0002805,2]
[356419290,1742429477732,-515.31425035,0.0002805,2]
[356419291,1742429477742,-500.0,0.0002805,2]
[356419292,1742429477752,-500.0,0.0002805,2]
[356419293,1742429477762,-500.0,0.0002805,2]
[356419294,1742429477771,-500.0,0.0002805,2]
[356419295,1742429477781,-500.0,0.0002805,2]
[356419296,1742429477791,-500.0,0.0002805,2]
[356419297,1742429477801,-611.3,0.0002805,2]
[356419298,1742429477810,-500.0,0.0002805,2]
[356419299,1742429477820,-500.0,0.0002805,2]
[356419300,1742429477829,-830.24,0.0002805,2]
[356419301,1742429477839,-500.0,0.0002805,2]
[356419302,1742429477848,-1438.85,0.0002805,2]
[356419303,1742429477859,-500.0,0.0002805,2]
[356419304,1742429477869,-500.0,0.0002805,2]
[356419305,1742429477880,-500.0,0.0002805,2]
[356419306,1742429477890,-500.0,0.0002805,2]
[356419307,1742429477900,-1391.13,0.0002805,2]
[356419308,1742429477909,-500.0,0.0002805,2]
[356419309,1742429477920,-595.75,0.0002805,2]
[356419310,1742429477931,-716.36,0.0002805,2]
[356419311,1742429477941,-1454.99,0.0002805,2]
[356419312,1742429477951,-675.21,0.0002805,2]
[356419313,1742429477961,-500.0,0.0002805,2]
[356419314,1742429477971,-515.44,0.0002805,2]
[356419315,1742429477981,-500.0,0.0002805,2]
[356419316,1742429477991,-634.85,0.0002805,2]
[356419317,1742429478003,-500.0,0.0002805,2]
[356419318,1742429478012,-1552.13,0.0002805,2]
[356419319,1742429478022,-541.37159304,0.0002805,2]
[356419320,1742429478032,-500.0,0.0002805,2]
[356419321,1742429478042,-500.0,0.0002805,2]
[356419322,1742429478053,-1363.03,0.0002805,2]
[356419323,1742429478062,-759.42,0.0002805,2]
[356419324,1742429478072,-203.39018082,0.0002805,2]
[356419325,1742429478082,-500.0,0.0002805,2]
[356419326,1742429478093,-500.0,0.0002805,2]
[356419327,1742429478102,-585.52,0.0002805,2]
[356419328,1742429478112,-577.74,0.0002805,2]
[356419329,1742429478122,-500.0,0.0002805,2]
[356419330,1742429478132,-942.79,0.0002805,2]
[356419331,1742429478143,-1896.17,0.0002805,2]
[356419332,1742429478153,-500.0,0.0002805,2]
[356419333,1742429478163,-500.0,0.0002805,2]
[356419334,1742429478172,-845.54,0.0002805,2]
[356419335,1742429478182,-1080.65,0.0002805,2]
[356419336,1742429478192,-500.0,0.0002805,2]
[356419337,1742429478201,-588.13,0.0002805,2]
[356419338,1742429478211,-753.55,0.0002805,2]
[356419339,1742429478220,-500.0,0.0002805,2]
[356419340,1742429478230,-500.0,0.0002805,2]
[356419341,1742429478239,-570.95,0.0002805,2]
[356419342,1742429478249,-500.0,0.0002805,2]
[356419343,1742429478258,-500.0,0.0002805,2]
[356419344,1742429478267,-1924.39,0.0002805,2]
[356419345,1742429478277,-500.0,0.0002805,2]
[356419346,1742429478286,-500.0,0.0002805,2]
[356419347,1742429478296,-561.68,0.0002805,2]
[356419348,1742429478306,-716.58,0.0002805,2]
[356419349,1742429478316,-500.0,0.0002805,2]
[356419350,1742429478326,-500.0,0.0002805,2]
[356419351,1742429478336,-1105.37,0.0002805,2]
[356419352,1742429478345,-1515.07,0.0002805,2]
[356419353,1742429478355,-624.32,0.0002805,2]
[356419354,1742429478365,-500.0,0.0002805,2]
[356419355,1742429478375,-500.0,0.0002805,2]
[356419356,1742429478386,-1500.0,0.0002805,2]
[356419357,1742429478399,-1270.74,0.0002805,2]
[356419358,1742429478409,-534.52543004,0.0002805,2]
[356419359,1742429478433,-151.0,0.00027819,7]
[356419360,1742429478442,-836.08456996,0.0002805,2]
[356419361,1742429478451,-822.95,0.0002805,2]
[356419362,1742429478461,-500.0,0.0002805,2]
[356419363,1742429478470,-500.0,0.0002805,2]
[356419364,1742429478480,-500.0,0.0002805,2]
[356419365,1742429478489,-83.22413616,0.0002805,2]
[356419366,1742429478501,-416.77586384,0.0002805,2]
[356419367,1742429478511,-764.32,0.0002805,2]
[356419368,1742429478521,-437.09538957,0.0002805,2]
[356419369,1742429478530,-500.0,0.0002805,2]
[356419370,1742429478540,-500.0,0.0002805,2]
[356419371,1742429478550,-500.0,0.0002805,2]
[356419372,1742429478560,-500.0,0.0002805,2]
[356419373,1742429478569,-1556.19,0.0002805,2]
[356419374,1742429478579,-500.0,0.0002805,2]
[356419375,1742429478589,-500.0,0.0002805,2]
[356419376,1742429478600,-500.0,0.0002805,2]
[356419377,1742429478610,-500.0,0.0002805,2]
[356419378,1742429478620,-500.0,0.0002805,2]
[356419379,1742429478634,-576.66,0.0002805,2]
[356419380,1742429478645,-1995.64,0.0002805,2]
[356419381,1742429478656,-248.07390659,0.0002805,2]
[356419382,1742429478669,-251.92609341,0.0002805,2]
[356419383,1742429478678,-500.0,0.0002805,2]
[356419384,1742429478689,-64.40682893,0.0002805,2]
[356419387,1742430337050,1161.34121138,8e-05,2]
[356419391,1742430355027,1061.86254162,6.94e-05,2]
[356419392,1742430355050,650.18536632,6.94e-05,2]
[356419393,1742430362416,1050.52382254,8e-05,2]
[356419394,1742430405210,150.0,0.00023,120]
[356419395,1742430411693,1007.77686137,9.77e-05,2]
[356419397,1742430472634,514.71770277,8e-05,2]
[356419398,1742430472662,622.06959532,8e-05,2]
[356419403,1742430502172,522.0,0.00023,120]
[356419404,1742430503775,376.63980485,7.888e-05,2]
[356419406,1742430509107,1730.93409625,9.828e-05,2]
[356419451,1742430631583,-275.72,0.00024913,2]
[356419452,1742430631593,-150.0,0.00026617,2]
[356419453,1742430631603,-150.0,0.00026638,7]
[356419454,1742430631612,-2133.2800003,0.00026663,2]
[356419455,1742430631625,-716.376734,0.00026663,2]
[356419456,1742430631717,-568.17990878,0.00026663,2]
[356419496,1742430638175,-292.59393223,0.00026663,2]
[356419497,1742430638191,-65.20942469,0.00026663,2]
[356419498,1742430638200,-172.16993295,0.0002669,2]
[356419499,1742430638209,-1000.0,0.00026741,2]
[356419500,1742430638218,-156.47,0.00026772,30]
[356419501,1742430638227,-150.0,0.0002679,2]
[356419502,1742430638236,-177.94,0.00026849,2]
[356419503,1742430638246,-436.11,0.00026854,2]
[356419504,1742430638255,-587.32750165,0.000269,4]
[356419505,1742430638264,-161.58,0.00026904,2]
[356419506,1742430638276,-186.0,0.00027,2]
[356419507,1742430638285,-275.72,0.00027177,2]
[356419508,1742430638296,-197.8480694,0.00027208,4]
[356419509,1742430638309,-151.032006,0.00027398,120]
[356419510,1742430638319,-151.032009,0.00027498,120]
[356419511,1742430638328,-531.56105631,0.000275,10]
[356419514,1742430639733,-168.43894369,0.000275,10]
[356419515,1742430639742,-1067.74915415,0.00027531,2]
[356419525,1742430642590,-1088.82344585,0.00027531,2]
[356419528,1742430642600,-151.032009,0.00027598,120]
[356419529,1742430642609,-658.32,0.000276,2]
[356419530,1742430642619,-1500.0,0.000276,10]
[356419531,1742430642629,-186.0,0.00027671,2]
[356419532,1742430642639,-587.32750149,0.00027693,4]
[356419533,1742430642649,-151.032009,0.00027698,120]
[356419534,1742430642658,-2300.0,0.000277,10]
[356419535,1742430642667,-5820.8727,0.00027717,2]
[356419536,1742430642677,-172.16993295,0.00027717,2]
[356419537,1742430642687,-244.79009841,0.0002773,2]
[356419538,1742430642696,-1000.0,0.00027731,2]
[356419539,1742430642706,-169.26026988,0.00027766,2]
[356419540,1742430642715,-1260.55804,0.0002777,40]
[356419541,1742430642725,-846.007,0.00027773,17]
[356419542,1742430642735,-151.032009,0.00027798,120]
[356419543,1742430642744,-335.7,0.000278,2]
[356419544,1742430642753,-3100.0,0.000278,10]
[356419545,1742430642763,-244.79009839,0.00027814,2]
[356419546,1742430642772,-794.43,0.00027817,2]
[356419547,1742430642781,-557.92,0.00027817,2]
[356419548,1742430642791,-518.0,0.00027817,2]
[356419549,1742430642800,-500.0,0.00027817,2]
[356419550,1742430642809,-636.71,0.00027817,2]
[356419551,1742430642819,-500.0,0.00027817,2]
[356419552,1742430642828,-856.66,0.00027817,2]
[356419553,1742430642838,-500.0,0.00027817,2]
[356419554,1742430642848,-199.51443844,0.00027817,2]
[356419558,1742430645615,-300.48556156,0.00027817,2]
[356419559,1742430645625,-500.0,0.00027817,2]
[356419560,1742430645636,-1362.03,0.00027817,2]
[356419561,1742430645646,-500.0,0.00027817,2]
[356419562,1742430645656,-500.0,0.00027817,2]
[356419563,1742430645665,-500.0,0.00027817,2]
[356419564,1742430645675,-537.64,0.00027817,2]
[356419565,1742430645684,-760.08,0.00027817,2]
[356419566,1742430645693,-500.0,0.00027817,2]
[356419567,1742430645703,-500.0,0.00027817,2]
[356419568,1742430645713,-544.27,0.00027817,2]
[356419569,1742430645722,-626.94,0.00027817,2]
[356419570,1742430645732,-500.0,0.00027817,2]
[356419571,1742430645741,-500.0,0.00027817,2]
[356419572,1742430645751,-500.0,0.00027817,2]
[356419573,1742430645761,-500.0,0.00027817,2]
[356419574,1742430645770,-500.0,0.00027817,2]
[356419575,1742430645781,-935.88,0.00027817,2]
[356419576,1742430645791,-500.0,0.00027817,2]
[356419577,1742430645801,-502.14,0.00027817,2]
[356419578,1742430645811,-171.61045663,0.00027817,2]
[356419579,1742430645820,-500.0,0.00027817,2]
[356419580,1742430645830,-656.8,0.00027817,2]
[356419581,1742430645840,-569.98,0.00027817,2]
[356419582,1742430645850,-810.9,0.00027817,2]